[Event "Early-Titled-Tuesday-Blitz-February-27-2024"]
[Site "Chess.com"]
[Date "2024.02.27"]
[Round "4"]
[White "DonMicheleCorleone"]
[Black "LuisFSiles"]
[Result "1-0"]
[WhiteElo "2521"]
[BlackElo "2318"]
[TimeControl "180+1"]
[EndTime "8:36:24 PST"]
[Termination "DonMicheleCorleone won by resignation"]

1. e4 {[%clk 0:03:00.9]} 1... c5 {[%clk 0:02:59.6]} 2. Nc3 {[%clk 0:02:59.8]}
2... Nc6 {[%clk 0:02:59.1]} 3. Nf3 {[%clk 0:02:59.6]} 3... g6 {[%clk 0:02:58.3]}
4. Bb5 {[%clk 0:02:57.7]} 4... Nd4 {[%clk 0:02:57]} 5. Ba4 {[%clk 0:02:52.9]}
5... Bg7 {[%clk 0:02:55.6]} 6. O-O {[%clk 0:02:50.9]} 6... a6 {[%clk 0:02:38.8]}
7. Nxd4 {[%clk 0:02:50.8]} 7... cxd4 {[%clk 0:02:37.6]} 8. Ne2 {[%clk 0:02:51]}
8... Nf6 {[%clk 0:02:33.2]} 9. d3 {[%clk 0:02:20.5]} 9... b5 {[%clk 0:02:13.3]}
10. Bb3 {[%clk 0:02:20.6]} 10... Qb6 {[%clk 0:02:13.8]} 11. a4 {[%clk
0:02:15.3]} 11... O-O {[%clk 0:02:01.5]} 12. axb5 {[%clk 0:02:13.5]} 12... Qxb5
{[%clk 0:01:49.5]} 13. Nxd4 {[%clk 0:02:13.7]} 13... Qb8 {[%clk 0:01:40.8]} 14.
h3 {[%clk 0:02:00.9]} 14... Bb7 {[%clk 0:01:30.6]} 15. Bg5 {[%clk 0:01:58.2]}
15... d5 {[%clk 0:01:29.9]} 16. exd5 {[%clk 0:01:31.4]} 16... Nxd5 {[%clk
0:01:29]} 17. Bxd5 {[%clk 0:01:17]} 17... Bxd5 {[%clk 0:01:26.5]} 18. c3 {[%clk
0:01:16.6]} 18... Qxb2 {[%clk 0:01:21.9]} 19. Bxe7 {[%clk 0:01:12.6]} 19... Rfe8
{[%clk 0:01:16.5]} 20. Bb4 {[%clk 0:01:06.4]} 20... Bxd4 {[%clk 0:01:14.4]} 21.
Rb1 {[%clk 0:01:06.8]} 21... Qa2 {[%clk 0:00:42.5]} 22. cxd4 {[%clk 0:01:05.5]}
22... Qa4 {[%clk 0:00:28.5]} 23. Qxa4 {[%clk 0:01:04.3]} 1-0

[Event "Early-Titled-Tuesday-Blitz-February-27-2024"]
[Site "Chess.com"]
[Date "2024.02.27"]
[Round "4"]
[White "LeninGuerra"]
[Black "Kostukov_Alex"]
[Result "1-0"]
[WhiteElo "2579"]
[BlackElo "2376"]
[TimeControl "180+1"]
[EndTime "8:36:28 PST"]
[Termination "LeninGuerra won on time"]

1. e4 {[%clk 0:02:59.8]} 1... c5 {[%clk 0:02:52.2]} 2. Nf3 {[%clk 0:02:59.7]}
2... g6 {[%clk 0:02:50.9]} 3. d4 {[%clk 0:02:59.1]} 3... cxd4 {[%clk 0:02:51.1]}
4. Nxd4 {[%clk 0:03:00]} 4... Bg7 {[%clk 0:02:51.3]} 5. Nc3 {[%clk 0:03:00.2]}
5... Nc6 {[%clk 0:02:52]} 6. Nb3 {[%clk 0:03:00.1]} 6... Nf6 {[%clk 0:02:51.1]}
7. Be2 {[%clk 0:03:00.3]} 7... O-O {[%clk 0:02:51.2]} 8. O-O {[%clk 0:03:01.2]}
8... a5 {[%clk 0:02:51.4]} 9. a4 {[%clk 0:03:01.1]} 9... Nb4 {[%clk 0:02:51.6]}
10. Re1 {[%clk 0:03:01.4]} 10... d5 {[%clk 0:02:47.7]} 11. e5 {[%clk 0:03:01.7]}
11... Ne4 {[%clk 0:02:45.1]} 12. Bf3 {[%clk 0:02:50.8]} 12... Bxe5 {[%clk
0:02:31.9]} 13. Nxd5 {[%clk 0:02:29.4]} 13... Nxd5 {[%clk 0:01:35.3]} 14. Bxe4
{[%clk 0:02:28.2]} 14... Nb4 {[%clk 0:01:08.3]} 15. Qxd8 {[%clk 0:02:24.6]}
15... Rxd8 {[%clk 0:01:06.9]} 16. c3 {[%clk 0:02:25.2]} 16... Nc6 {[%clk
0:00:48.1]} 17. Be3 {[%clk 0:02:20.2]} 17... Bd6 {[%clk 0:00:31.4]} 18. Bb6
{[%clk 0:02:16.7]} 18... Re8 {[%clk 0:00:26.2]} 19. Rad1 {[%clk 0:02:16.6]}
19... Be6 {[%clk 0:00:20.5]} 20. Nd4 {[%clk 0:02:04]} 20... Bd7 {[%clk
0:00:16.9]} 21. Nb5 {[%clk 0:02:00.5]} 21... Be6 {[%clk 0:00:10.4]} 22. Nxd6
{[%clk 0:01:51.2]} 22... exd6 {[%clk 0:00:10.5]} 23. Rxd6 {[%clk 0:01:51.4]}
23... Bb3 {[%clk 0:00:08.9]} 24. f3 {[%clk 0:01:48.6]} 24... Bxa4 {[%clk
0:00:08.5]} 25. Ra1 {[%clk 0:01:43.3]} 25... Bb5 {[%clk 0:00:07.9]} 26. Rd7
{[%clk 0:01:41.5]} 26... Rab8 {[%clk 0:00:03.1]} 27. Bd5 {[%clk 0:01:39.9]}
27... Rf8 {[%clk 0:00:01.8]} 28. c4 {[%clk 0:01:33.4]} 1-0

[Event "Early-Titled-Tuesday-Blitz-February-27-2024"]
[Site "Chess.com"]
[Date "2024.02.27"]
[Round "4"]
[White "Vesapesa"]
[Black "DumbKing75"]
[Result "0-1"]
[WhiteElo "2240"]
[BlackElo "2648"]
[TimeControl "180+1"]
[EndTime "8:36:29 PST"]
[Termination "DumbKing75 won by resignation"]

1. e4 {[%clk 0:02:56.3]} 1... c5 {[%clk 0:02:57.3]} 2. Nf3 {[%clk 0:02:56]} 2...
a6 {[%clk 0:02:55.5]} 3. d4 {[%clk 0:02:55.4]} 3... cxd4 {[%clk 0:02:53.3]} 4.
Nxd4 {[%clk 0:02:56.3]} 4... Nf6 {[%clk 0:02:49.8]} 5. Nc3 {[%clk 0:02:46.8]}
5... e5 {[%clk 0:02:49.4]} 6. Nf3 {[%clk 0:02:43.4]} 6... Bb4 {[%clk 0:02:47.7]}
7. Bd3 {[%clk 0:02:38.4]} 7... Bxc3+ {[%clk 0:02:43.3]} 8. bxc3 {[%clk
0:02:39.3]} 8... d6 {[%clk 0:02:43.1]} 9. O-O {[%clk 0:02:38.5]} 9... Qc7 {[%clk
0:02:43.3]} 10. Bg5 {[%clk 0:02:23.7]} 10... Nbd7 {[%clk 0:02:31.9]} 11. Qd2
{[%clk 0:02:19.6]} 11... h6 {[%clk 0:02:31]} 12. Bh4 {[%clk 0:02:16.1]} 12...
Nh5 {[%clk 0:02:26.5]} 13. Bg3 {[%clk 0:02:11.2]} 13... O-O {[%clk 0:02:18]} 14.
Rfd1 {[%clk 0:02:06.2]} 14... Nc5 {[%clk 0:02:17.8]} 15. Qe3 {[%clk 0:02:03.8]}
15... Na4 {[%clk 0:01:54.1]} 16. c4 {[%clk 0:01:54.1]} 16... Be6 {[%clk
0:01:50.9]} 17. Be2 {[%clk 0:01:46.7]} 17... Nxg3 {[%clk 0:01:49.7]} 18. hxg3
{[%clk 0:01:46]} 18... Rfd8 {[%clk 0:01:41.6]} 19. Rab1 {[%clk 0:01:43.3]} 19...
Rab8 {[%clk 0:01:25.2]} 20. Qb3 {[%clk 0:01:28.1]} 20... b5 {[%clk 0:01:21.9]}
21. Nd2 {[%clk 0:01:24.5]} 21... Nb6 {[%clk 0:01:13.7]} 22. Qa3 {[%clk
0:01:12.6]} 22... Nxc4 {[%clk 0:01:02.6]} 23. Qxa6 {[%clk 0:01:08.1]} 23... Rb6
{[%clk 0:00:50.6]} 24. Qxb6 {[%clk 0:00:48.7]} 24... Nxb6 {[%clk 0:00:47.8]} 0-1

[Event "Early-Titled-Tuesday-Blitz-February-27-2024"]
[Site "Chess.com"]
[Date "2024.02.27"]
[Round "4"]
[White "chucksterf10"]
[Black "publicaccountcze"]
[Result "1-0"]
[WhiteElo "2550"]
[BlackElo "2238"]
[TimeControl "180+1"]
[EndTime "8:36:30 PST"]
[Termination "chucksterf10 won by resignation"]

1. a3 {[%clk 0:03:00.9]} 1... e5 {[%clk 0:02:56.8]} 2. c4 {[%clk 0:02:59.5]}
2... Nf6 {[%clk 0:02:51.7]} 3. Nc3 {[%clk 0:02:59.7]} 3... d5 {[%clk 0:02:50.7]}
4. cxd5 {[%clk 0:03:00.6]} 4... Nxd5 {[%clk 0:02:51.2]} 5. e4 {[%clk 0:03:01.3]}
5... Nxc3 {[%clk 0:02:49.6]} 6. bxc3 {[%clk 0:03:02.2]} 6... c5 {[%clk
0:02:45.6]} 7. Nf3 {[%clk 0:03:01.9]} 7... Nc6 {[%clk 0:02:43.6]} 8. Bb5 {[%clk
0:03:02.3]} 8... Bd6 {[%clk 0:02:16.5]} 9. O-O {[%clk 0:02:53.8]} 9... O-O
{[%clk 0:02:15.8]} 10. d4 {[%clk 0:02:54.4]} 10... cxd4 {[%clk 0:02:15.2]} 11.
cxd4 {[%clk 0:02:51.4]} 11... exd4 {[%clk 0:02:15.5]} 12. Bxc6 {[%clk
0:02:50.9]} 12... bxc6 {[%clk 0:02:13.2]} 13. Qxd4 {[%clk 0:02:51.4]} 13... Bg4
{[%clk 0:02:10.7]} 14. e5 {[%clk 0:02:50.6]} 14... Bxf3 {[%clk 0:02:06.9]} 15.
exd6 {[%clk 0:02:50.9]} 15... Bd5 {[%clk 0:02:05]} 16. Bb2 {[%clk 0:02:48.5]}
16... Qg5 {[%clk 0:02:03.2]} 17. g3 {[%clk 0:02:47.8]} 17... f6 {[%clk
0:01:51.6]} 18. h4 {[%clk 0:02:44.8]} 18... Qf5 {[%clk 0:01:48.6]} 19. Kh2
{[%clk 0:02:24]} 19... Rfd8 {[%clk 0:01:33.4]} 20. Qc5 {[%clk 0:02:19.8]} 20...
Qf3 {[%clk 0:01:28.5]} 21. Rg1 {[%clk 0:02:20.1]} 21... Rab8 {[%clk 0:01:25.5]}
22. Bd4 {[%clk 0:02:18.2]} 22... Rb7 {[%clk 0:01:05.2]} 23. Rae1 {[%clk
0:02:12]} 23... Rbd7 {[%clk 0:01:03.2]} 24. Re7 {[%clk 0:02:07.9]} 24... Qf5
{[%clk 0:00:49.4]} 25. Rge1 {[%clk 0:01:57.4]} 25... h5 {[%clk 0:00:36.6]} 26.
f4 {[%clk 0:01:50.7]} 26... Rxe7 {[%clk 0:00:23.9]} 27. dxe7 {[%clk 0:01:49.8]}
27... Re8 {[%clk 0:00:23.8]} 28. Qc3 {[%clk 0:01:38.8]} 28... Be6 {[%clk
0:00:19.1]} 29. Bxa7 {[%clk 0:01:37.3]} 29... Qh3+ {[%clk 0:00:18.5]} 30. Kg1
{[%clk 0:01:37.9]} 30... Bd5 {[%clk 0:00:19.1]} 31. Re2 {[%clk 0:01:32]} 31...
Qh1+ {[%clk 0:00:18.8]} 32. Kf2 {[%clk 0:01:32.7]} 32... Qg2+ {[%clk 0:00:16.3]}
33. Ke1 {[%clk 0:01:32.9]} 33... Qg1+ {[%clk 0:00:16.6]} 34. Bxg1 {[%clk
0:01:32.7]} 1-0

[Event "Early-Titled-Tuesday-Blitz-February-27-2024"]
[Site "Chess.com"]
[Date "2024.02.27"]
[Round "4"]
[White "Bastiandash"]
[Black "Zkid"]
[Result "0-1"]
[WhiteElo "2611"]
[BlackElo "2925"]
[TimeControl "180+1"]
[EndTime "8:36:36 PST"]
[Termination "Zkid won by resignation"]

1. e4 {[%clk 0:02:47.9]} 1... c5 {[%clk 0:02:59.2]} 2. Nf3 {[%clk 0:02:45.7]}
2... d6 {[%clk 0:02:59.3]} 3. c3 {[%clk 0:02:42.5]} 3... Nf6 {[%clk 0:02:58.5]}
4. h3 {[%clk 0:02:42.9]} 4... Nc6 {[%clk 0:02:56.2]} 5. Bd3 {[%clk 0:02:42.3]}
5... g6 {[%clk 0:02:52.4]} 6. Bc2 {[%clk 0:02:40.1]} 6... Bg7 {[%clk 0:02:52.6]}
7. O-O {[%clk 0:02:40.2]} 7... O-O {[%clk 0:02:47.3]} 8. d4 {[%clk 0:02:40.6]}
8... cxd4 {[%clk 0:02:38.5]} 9. cxd4 {[%clk 0:02:41.5]} 9... e5 {[%clk
0:02:37.6]} 10. d5 {[%clk 0:02:24.3]} 10... Nb4 {[%clk 0:02:37.6]} 11. Bb3
{[%clk 0:02:23.7]} 11... a5 {[%clk 0:02:37.7]} 12. a3 {[%clk 0:02:17.3]} 12...
Na6 {[%clk 0:02:37.6]} 13. Nc3 {[%clk 0:02:13.9]} 13... Bd7 {[%clk 0:02:33.4]}
14. Qe2 {[%clk 0:02:11.2]} 14... Nc5 {[%clk 0:02:31.4]} 15. Bc4 {[%clk 0:02:06]}
15... b5 {[%clk 0:02:17]} 16. Bxb5 {[%clk 0:01:58.4]} 16... Nfxe4 {[%clk
0:02:12.4]} 17. Nxe4 {[%clk 0:01:53.5]} 17... Bxb5 {[%clk 0:02:12]} 18. Qxb5
{[%clk 0:01:52.3]} 18... Nxe4 {[%clk 0:02:12.7]} 19. Be3 {[%clk 0:01:43.2]}
19... Qb8 {[%clk 0:02:03.1]} 20. Qc4 {[%clk 0:01:37.8]} 20... f5 {[%clk
0:02:01.1]} 21. b4 {[%clk 0:01:37.9]} 21... Rc8 {[%clk 0:01:58.4]} 22. Qb3
{[%clk 0:01:32.5]} 22... Nc3 {[%clk 0:01:54.3]} 23. Kh1 {[%clk 0:01:15.1]} 23...
Qb5 {[%clk 0:01:31.5]} 24. Rfc1 {[%clk 0:01:07.5]} 24... a4 {[%clk 0:01:29.3]}
25. Qb2 {[%clk 0:01:00.9]} 25... Nxd5 {[%clk 0:01:13.8]} 26. Qd2 {[%clk
0:00:57.4]} 26... Nxe3 {[%clk 0:01:08.7]} 27. Qxe3 {[%clk 0:00:53.7]} 27... d5
{[%clk 0:01:03.5]} 28. Nxe5 {[%clk 0:00:46.9]} 28... d4 {[%clk 0:01:00.1]} 0-1

[Event "Early-Titled-Tuesday-Blitz-February-27-2024"]
[Site "Chess.com"]
[Date "2024.02.27"]
[Round "4"]
[White "MKlose11"]
[Black "LileKoridze"]
[Result "1-0"]
[WhiteElo "2598"]
[BlackElo "2417"]
[TimeControl "180+1"]
[EndTime "8:36:38 PST"]
[Termination "MKlose11 won by resignation"]

1. e4 {[%clk 0:03:00.9]} 1... c5 {[%clk 0:02:58.9]} 2. Nc3 {[%clk 0:02:56.6]}
2... d6 {[%clk 0:02:57.6]} 3. g3 {[%clk 0:02:57.5]} 3... Nf6 {[%clk 0:02:56.6]}
4. d3 {[%clk 0:02:58]} 4... g6 {[%clk 0:02:57.1]} 5. Bg2 {[%clk 0:02:58.3]} 5...
Bg7 {[%clk 0:02:57.7]} 6. Nge2 {[%clk 0:02:58.5]} 6... O-O {[%clk 0:02:56.5]} 7.
O-O {[%clk 0:02:55.8]} 7... Nc6 {[%clk 0:02:55.2]} 8. h3 {[%clk 0:02:54.8]} 8...
e6 {[%clk 0:02:55.1]} 9. Be3 {[%clk 0:02:55.1]} 9... Qe7 {[%clk 0:02:51.5]} 10.
Qd2 {[%clk 0:02:55.2]} 10... Rd8 {[%clk 0:02:51.1]} 11. Bh6 {[%clk 0:02:54.7]}
11... Bxh6 {[%clk 0:02:48.3]} 12. Qxh6 {[%clk 0:02:54.2]} 12... Ne8 {[%clk
0:02:47.3]} 13. f4 {[%clk 0:02:53.9]} 13... Ng7 {[%clk 0:02:47.2]} 14. f5 {[%clk
0:02:50.5]} 14... exf5 {[%clk 0:02:46.7]} 15. Nd5 {[%clk 0:02:50.2]} 15... Qe5
{[%clk 0:02:41.7]} 16. Rae1 {[%clk 0:02:38.6]} 16... Be6 {[%clk 0:02:36]} 17.
Nef4 {[%clk 0:02:32.7]} 17... Ne8 {[%clk 0:01:58.5]} 18. exf5 {[%clk 0:02:26.8]}
18... Qd4+ {[%clk 0:01:58.6]} 19. Kh2 {[%clk 0:02:25.5]} 19... Bxf5 {[%clk
0:01:58.7]} 20. Ne7+ {[%clk 0:02:16.4]} 20... Nxe7 {[%clk 0:01:58.3]} 21. Rxe7
{[%clk 0:02:17.3]} 21... Qg7 {[%clk 0:01:26.8]} 22. Qxg7+ {[%clk 0:02:07]} 22...
Kxg7 {[%clk 0:01:21.7]} 23. Rxb7 {[%clk 0:02:01.4]} 23... Rab8 {[%clk
0:01:20.9]} 24. g4 {[%clk 0:02:00.6]} 24... Rxb7 {[%clk 0:01:20.1]} 25. Bxb7
{[%clk 0:02:00.1]} 25... Rb8 {[%clk 0:01:20.4]} 26. Bd5 {[%clk 0:01:59.9]} 26...
Rxb2 {[%clk 0:01:19.6]} 27. gxf5 {[%clk 0:01:57.5]} 27... Rxc2+ {[%clk
0:01:19.9]} 28. Kg3 {[%clk 0:01:57.9]} 28... Nf6 {[%clk 0:01:18.7]} 29. Bb3
{[%clk 0:01:53.3]} 29... Rd2 {[%clk 0:01:13]} 30. fxg6 {[%clk 0:01:53.4]} 30...
hxg6 {[%clk 0:01:12.9]} 31. Rf2 {[%clk 0:01:52.8]} 31... Rxf2 {[%clk 0:01:03]}
32. Kxf2 {[%clk 0:01:51.8]} 32... Nd7 {[%clk 0:01:03.7]} 33. Ke3 {[%clk
0:01:47.5]} 33... Ne5 {[%clk 0:01:03.2]} 34. Nd5 {[%clk 0:01:45.9]} 34... f5
{[%clk 0:01:02]} 35. Ne7 {[%clk 0:01:44]} 35... Kf6 {[%clk 0:01:00.6]} 36. Nc8
{[%clk 0:01:44.1]} 36... Nc6 {[%clk 0:00:57.1]} 37. Nxd6 {[%clk 0:01:43.4]}
37... g5 {[%clk 0:00:57.7]} 38. Nb7 {[%clk 0:01:40.4]} 38... f4+ {[%clk
0:00:51.6]} 39. Kd2 {[%clk 0:01:40.5]} 39... Nd4 {[%clk 0:00:42]} 40. Nxc5
{[%clk 0:01:38]} 40... Nf3+ {[%clk 0:00:42.5]} 41. Kd1 {[%clk 0:01:28.1]} 41...
Ng1 {[%clk 0:00:37]} 42. Be6 {[%clk 0:01:28]} 42... Nf3 {[%clk 0:00:36.7]} 43.
Bg4 {[%clk 0:01:27.3]} 43... Nd4 {[%clk 0:00:37.1]} 44. Ne4+ {[%clk 0:01:26.4]}
1-0

[Event "Early-Titled-Tuesday-Blitz-February-27-2024"]
[Site "Chess.com"]
[Date "2024.02.27"]
[Round "4"]
[White "Alexander_Donchenko"]
[Black "ketster"]
[Result "1-0"]
[WhiteElo "2898"]
[BlackElo "2607"]
[TimeControl "180+1"]
[EndTime "8:36:39 PST"]
[Termination "Alexander_Donchenko won by resignation"]

1. e4 {[%clk 0:03:00.9]} 1... c5 {[%clk 0:02:56.8]} 2. Nf3 {[%clk 0:02:59.6]}
2... Nf6 {[%clk 0:02:55.5]} 3. Nc3 {[%clk 0:02:58.4]} 3... d5 {[%clk 0:02:54.5]}
4. exd5 {[%clk 0:02:58.7]} 4... Nxd5 {[%clk 0:02:55.4]} 5. Bc4 {[%clk
0:02:58.9]} 5... Nxc3 {[%clk 0:02:53.1]} 6. bxc3 {[%clk 0:02:59.8]} 6... e6
{[%clk 0:02:32.2]} 7. O-O {[%clk 0:02:58.4]} 7... Be7 {[%clk 0:02:32.8]} 8. d4
{[%clk 0:02:58.2]} 8... O-O {[%clk 0:02:32.3]} 9. Re1 {[%clk 0:02:58]} 9... Qc7
{[%clk 0:02:29.8]} 10. d5 {[%clk 0:02:56.8]} 10... Rd8 {[%clk 0:02:25.7]} 11.
Qe2 {[%clk 0:02:47.3]} 11... exd5 {[%clk 0:02:08.8]} 12. Bf4 {[%clk 0:02:47.3]}
12... Qxf4 {[%clk 0:01:40.6]} 13. Qxe7 {[%clk 0:02:47]} 13... Rf8 {[%clk
0:01:40.1]} 14. Bxd5 {[%clk 0:02:47.3]} 14... Nc6 {[%clk 0:01:40.6]} 15. Qxc5
{[%clk 0:02:40.9]} 15... Bf5 {[%clk 0:01:09.1]} 16. g3 {[%clk 0:02:38.7]} 16...
Qg4 {[%clk 0:01:07.2]} 17. Bxc6 {[%clk 0:02:23.4]} 17... bxc6 {[%clk 0:01:08.1]}
18. Ne5 {[%clk 0:02:23.7]} 18... Qh3 {[%clk 0:01:08.3]} 19. Nxc6 {[%clk
0:02:20.5]} 19... Bxc2 {[%clk 0:01:04.5]} 20. Re2 {[%clk 0:02:08.7]} 20... Bd3
{[%clk 0:00:59.1]} 21. Re3 {[%clk 0:02:08.7]} 21... Ba6 {[%clk 0:00:47.4]} 22.
Rae1 {[%clk 0:02:03.5]} 22... h6 {[%clk 0:00:39.4]} 23. Ne7+ {[%clk 0:01:48.3]}
23... Kh8 {[%clk 0:00:39.1]} 24. Nf5 {[%clk 0:01:48.6]} 24... Bb7 {[%clk
0:00:28.8]} 25. f3 {[%clk 0:01:45.7]} 25... Rac8 {[%clk 0:00:29.1]} 26. Qe5
{[%clk 0:01:30.6]} 26... f6 {[%clk 0:00:26.3]} 27. Qe6 {[%clk 0:01:23.8]} 27...
Rce8 {[%clk 0:00:17.5]} 28. Qd7 {[%clk 0:01:22.3]} 1-0

[Event "Early-Titled-Tuesday-Blitz-February-27-2024"]
[Site "Chess.com"]
[Date "2024.02.27"]
[Round "4"]
[White "Lukianoo"]
[Black "Kunalm64"]
[Result "1-0"]
[WhiteElo "2839"]
[BlackElo "2574"]
[TimeControl "180+1"]
[EndTime "8:36:41 PST"]
[Termination "Lukianoo won by resignation"]

1. e4 {[%clk 0:03:00.9]} 1... c6 {[%clk 0:02:59.9]} 2. d4 {[%clk 0:03:00.8]}
2... d5 {[%clk 0:03:00.6]} 3. e5 {[%clk 0:03:01.5]} 3... Bf5 {[%clk 0:03:00.4]}
4. h4 {[%clk 0:03:01.7]} 4... h5 {[%clk 0:03:00.5]} 5. Bd3 {[%clk 0:03:01.9]}
5... Bxd3 {[%clk 0:03:00.7]} 6. Qxd3 {[%clk 0:03:02.8]} 6... Qa5+ {[%clk
0:03:01]} 7. Nd2 {[%clk 0:03:02.5]} 7... e6 {[%clk 0:02:56.7]} 8. Ne2 {[%clk
0:03:02.5]} 8... Ne7 {[%clk 0:02:56.3]} 9. O-O {[%clk 0:03:02.3]} 9... Nf5
{[%clk 0:02:56.1]} 10. Nf3 {[%clk 0:03:02.5]} 10... Be7 {[%clk 0:02:55.3]} 11.
Bg5 {[%clk 0:02:54.3]} 11... Qa6 {[%clk 0:02:47.1]} 12. Qd2 {[%clk 0:02:52.3]}
12... Nd7 {[%clk 0:02:35.3]} 13. Ng3 {[%clk 0:02:48]} 13... g6 {[%clk
0:01:53.4]} 14. Nxf5 {[%clk 0:02:46.5]} 14... gxf5 {[%clk 0:01:53.4]} 15. Bxe7
{[%clk 0:02:46.7]} 15... Kxe7 {[%clk 0:01:53.5]} 16. b3 {[%clk 0:02:33]} 16...
Rag8 {[%clk 0:01:43.6]} 17. Ng5 {[%clk 0:02:32.8]} 17... Qb6 {[%clk 0:01:39.7]}
18. c4 {[%clk 0:02:29.7]} 18... a5 {[%clk 0:01:23.5]} 19. cxd5 {[%clk
0:02:29.5]} 19... cxd5 {[%clk 0:01:23]} 20. Rac1 {[%clk 0:02:28.1]} 20... Nb8
{[%clk 0:01:23]} 21. Rc5 {[%clk 0:02:25.7]} 21... Nc6 {[%clk 0:01:22.8]} 22.
Rfc1 {[%clk 0:02:25.2]} 22... Ra8 {[%clk 0:01:06.8]} 23. Nf3 {[%clk 0:02:20.9]}
23... Rhg8 {[%clk 0:01:04.6]} 24. Ng5 {[%clk 0:02:03.6]} 24... Qb4 {[%clk
0:00:59.1]} 25. Qd1 {[%clk 0:01:57]} 25... Rg6 {[%clk 0:00:40.2]} 26. Rxc6
{[%clk 0:01:38.4]} 26... bxc6 {[%clk 0:00:38.4]} 27. Rxc6 {[%clk 0:01:39.3]}
27... Rxg5 {[%clk 0:00:24.2]} 28. hxg5 {[%clk 0:01:38.6]} 28... Qb7 {[%clk
0:00:20.1]} 29. Qc1 {[%clk 0:01:37.5]} 29... Kd7 {[%clk 0:00:18.2]} 30. Rd6+
{[%clk 0:01:37]} 30... Ke8 {[%clk 0:00:18.5]} 31. g6 {[%clk 0:01:37.1]} 31...
Rc8 {[%clk 0:00:17.1]} 32. Qh6 {[%clk 0:01:33.6]} 32... Rc1+ {[%clk 0:00:15.9]}
33. Kh2 {[%clk 0:01:33.4]} 33... Qe7 {[%clk 0:00:16]} 34. Qh8+ {[%clk
0:01:31.6]} 1-0

[Event "Early-Titled-Tuesday-Blitz-February-27-2024"]
[Site "Chess.com"]
[Date "2024.02.27"]
[Round "4"]
[White "losersgame"]
[Black "Nbk90"]
[Result "1-0"]
[WhiteElo "2520"]
[BlackElo "2311"]
[TimeControl "180+1"]
[EndTime "8:36:43 PST"]
[Termination "losersgame won by resignation"]

1. d4 {[%clk 0:03:00.9]} 1... Nf6 {[%clk 0:02:59.5]} 2. c4 {[%clk 0:03:01.2]}
2... g6 {[%clk 0:02:59.6]} 3. Nc3 {[%clk 0:03:01.4]} 3... Bg7 {[%clk 0:02:58.5]}
4. e4 {[%clk 0:03:01.4]} 4... d6 {[%clk 0:02:58.5]} 5. f3 {[%clk 0:03:00.7]}
5... O-O {[%clk 0:02:58]} 6. Be3 {[%clk 0:03:00.7]} 6... e5 {[%clk 0:02:58]} 7.
d5 {[%clk 0:03:00.7]} 7... Nh5 {[%clk 0:02:57]} 8. Qd2 {[%clk 0:03:00.8]} 8...
f5 {[%clk 0:02:55.5]} 9. exf5 {[%clk 0:02:51.5]} 9... gxf5 {[%clk 0:02:52.5]}
10. g3 {[%clk 0:02:45.9]} 10... Nd7 {[%clk 0:02:49.4]} 11. O-O-O {[%clk
0:02:43]} 11... a5 {[%clk 0:02:34.2]} 12. Bd3 {[%clk 0:02:38.9]} 12... Nc5
{[%clk 0:02:31.5]} 13. Bc2 {[%clk 0:02:33.8]} 13... Qf6 {[%clk 0:02:21.7]} 14.
Nge2 {[%clk 0:02:28]} 14... b6 {[%clk 0:02:10.4]} 15. Rhg1 {[%clk 0:02:19.2]}
15... f4 {[%clk 0:01:43]} 16. Bxc5 {[%clk 0:02:18.4]} 16... bxc5 {[%clk
0:01:32.2]} 17. g4 {[%clk 0:02:13.1]} 17... Ba6 {[%clk 0:01:16]} 18. Ne4 {[%clk
0:02:09.1]} 18... Qh4 {[%clk 0:01:05.6]} 19. gxh5 {[%clk 0:02:06.8]} 19... Bxc4
{[%clk 0:01:02.2]} 20. Rg4 {[%clk 0:02:04.4]} 20... Qxh2 {[%clk 0:00:55.4]} 21.
Rdg1 {[%clk 0:02:04.1]} 21... Kh8 {[%clk 0:00:22.1]} 22. Rxg7 {[%clk 0:01:50.7]}
22... Rg8 {[%clk 0:00:20.9]} 23. Rxg8+ {[%clk 0:01:21]} 23... Rxg8 {[%clk
0:00:19.7]} 24. Rxg8+ {[%clk 0:01:20.4]} 24... Kxg8 {[%clk 0:00:20.6]} 25. N2c3
{[%clk 0:01:18.7]} 25... Qh1+ {[%clk 0:00:19.4]} 26. Qd1 {[%clk 0:01:07.4]} 1-0

[Event "Early-Titled-Tuesday-Blitz-February-27-2024"]
[Site "Chess.com"]
[Date "2024.02.27"]
[Round "4"]
[White "VitaliyChayka"]
[Black "Nuvas"]
[Result "1-0"]
[WhiteElo "2517"]
[BlackElo "2751"]
[TimeControl "180+1"]
[EndTime "8:36:54 PST"]
[Termination "VitaliyChayka won on time"]

1. d4 {[%clk 0:03:00.9]} 1... Nf6 {[%clk 0:02:59.8]} 2. Bf4 {[%clk 0:03:01]}
2... d5 {[%clk 0:02:59.3]} 3. e3 {[%clk 0:03:01.6]} 3... c5 {[%clk 0:02:59.4]}
4. dxc5 {[%clk 0:03:02.5]} 4... Nc6 {[%clk 0:02:54.8]} 5. Bb5 {[%clk 0:03:02.2]}
5... Bg4 {[%clk 0:02:03]} 6. Ne2 {[%clk 0:02:58.5]} 6... Qa5+ {[%clk 0:02:00]}
7. Nbc3 {[%clk 0:02:58]} 7... a6 {[%clk 0:02:00.5]} 8. Bxc6+ {[%clk 0:02:54.5]}
8... bxc6 {[%clk 0:02:01]} 9. f3 {[%clk 0:02:45.5]} 9... Bf5 {[%clk 0:01:55.6]}
10. Nd4 {[%clk 0:02:45.1]} 10... Bd7 {[%clk 0:01:51.2]} 11. Nb3 {[%clk
0:02:44.9]} 11... Qd8 {[%clk 0:01:48.8]} 12. O-O {[%clk 0:02:40]} 12... g6
{[%clk 0:01:48.8]} 13. e4 {[%clk 0:02:39.5]} 13... dxe4 {[%clk 0:01:37]} 14.
fxe4 {[%clk 0:02:39.6]} 14... Bg7 {[%clk 0:01:37.2]} 15. Qf3 {[%clk 0:02:30.5]}
15... O-O {[%clk 0:01:35.8]} 16. Rad1 {[%clk 0:02:30.7]} 16... Qc8 {[%clk
0:01:36.2]} 17. h3 {[%clk 0:02:29.5]} 17... Be6 {[%clk 0:01:30.4]} 18. Na4
{[%clk 0:02:17.3]} 18... Nd7 {[%clk 0:01:16.8]} 19. Nb6 {[%clk 0:01:58.8]} 19...
Nxb6 {[%clk 0:01:16.7]} 20. cxb6 {[%clk 0:01:59.7]} 20... c5 {[%clk 0:01:17]}
21. Bc7 {[%clk 0:01:55.9]} 21... Bc4 {[%clk 0:00:27.7]} 22. Nxc5 {[%clk
0:01:43.7]} 22... Bxf1 {[%clk 0:00:25.6]} 23. Qxf1 {[%clk 0:01:44.6]} 23... Rb8
{[%clk 0:00:20.2]} 24. c3 {[%clk 0:01:36.2]} 24... Rxb6 {[%clk 0:00:06.3]} 25.
Bxb6 {[%clk 0:01:35.5]} 25... Qc6 {[%clk 0:00:07]} 26. Nd7 {[%clk 0:01:25.2]}
26... Rc8 {[%clk 0:00:07.6]} 27. Qd3 {[%clk 0:01:23.5]} 27... h5 {[%clk
0:00:05.6]} 28. Bf2 {[%clk 0:01:16.3]} 28... e6 {[%clk 0:00:05.4]} 29. Bh4
{[%clk 0:01:10.9]} 1-0